{"text_format":"1","workbook":"xlsx","n_sheets":5,"sheets":["Sheet1","ورقة1","تقرير بالايصالات","Sheet12","Sheet13"],"not_rendered":{"charts":0,"images":0,"macros":1,"external_links":0,"defined_names":2,"comments":0,"pivot_tables":0},"unopened":[],"bounds":{"document_bytes":16777216,"sheet_cells":100000,"rows_first":2000,"rows_last":500,"rows_between":2000,"halvings":0,"cell_chars":16384,"cell_head_chars":4096},"cells_cut":0,"cells_raw":0,"read":"whole","date_system":"1900"}

{"sheet":"Sheet1","index":0,"n_rows":20,"n_cols":11,"rows_kept":20,"cut":false,"hidden":false,"merged":[[16,2,16,3],[14,5,14,7],[15,5,15,7],[19,10,21,15],[4,1,4,7],[8,3,8,7],[10,2,10,5],[12,2,12,7]]}
[]
[null,"شركة اولاد منصور للمقاولات العامة والتوريدات",null,null,null,"العنوان : ",null,null,null,null,"علي السيد ابراهيم "]
[null,"لصاحبها - الحاج منصور وشركاه",null,null,null,null,null,null,null,null,"جمال الوردانى فؤاد"]
[null,null,null,null,null,null,null,null,null,null,"عبدالله كمال الدين محمود"]
[null,"إيصــــــــــــال إستلام نقـــــدية",null,null,null,null,null,null,null,null,"السمان قناوي جمال علي"]
[]
[null,null,null,null,null,null,"رقــم :",1]
[]
[null,"مبلغ وقــدره:",150000,{"$f":"nototxt(C9,\"جنيـــهاً\",\"قرش\")","v":"فقط مائة وخمسون ألف جنيـــهاً"}]
[]
[null,"أسم المستلم :","علي السيد ابراهيم "]
[]
[null,"وذلك قيمة :","تمويل خزينة من م.عبدالله عبدالوهاب - بيد السائق اسلام السعيد ."]
[]
[null,null,null,null,null,"توقيع المستلم"]
[null,null,null,null,null,{"$f":"C11","v":"علي السيد ابراهيم "}]
[null,"تاريخ اليوم:",{"$f":"NOW()","v":"2019-03-18T02:22:32.880"}]
[]
[]
[null,null,null,null,null,null,null,null,null,null,"اتمنى ان اجد المساعدة من عباقرة هذا المنتدى الرائع ولكم منى جزيل الشكر وفائق الاحترام وبارك الله لكم في علمكم وابناءكم"]

{"sheet":"ورقة1","index":1,"n_rows":0,"n_cols":0,"rows_kept":0,"cut":false,"hidden":false,"merged":[]}

{"sheet":"تقرير بالايصالات","index":2,"n_rows":8,"n_cols":7,"rows_kept":8,"cut":false,"hidden":false,"merged":[[4,2,4,6]]}
[]
[]
[]
[]
[null,null,"تقرير كامل بالايصالات والمبالغ المستلمة"]
[null,null,"رقم الايصال","تاريخ الايصال","المبلغ رقماً","المبلغ كتابه","اسم المستلم"]
[null,null,1,43542.093896180559,4500,"فقط أربعة آلاف وخمسمائة جنيـــهاً","عبدالله كمال الدين محمود"]
[null,null,2,43542.098906481478,6001,"فقط ستة آلاف وواحد جنيـــهاً","السمان قناوي جمال علي"]

{"sheet":"Sheet12","index":3,"n_rows":17,"n_cols":27,"rows_kept":17,"cut":false,"hidden":false,"merged":[[16,2,16,3],[4,1,4,7],[8,3,8,7],[10,2,10,5],[12,2,12,7],[14,5,14,7],[15,5,15,7]]}
[null,null,null,null,null,null,null,null,null,null,null,null,null,null,null,null,null,null,null,null,null,null,null,null,null,null,2]
[null,"شركة اولاد منصور للمقاولات العامة والتوريدات",null,null,null,"العنوان : ",null,null,null,null,"علي السيد ابراهيم "]
[null,"لصاحبها - الحاج منصور وشركاه",null,null,null,null,null,null,null,null,"جمال الوردانى فؤاد"]
[null,null,null,null,null,null,null,null,null,null,"عبدالله كمال الدين محمود"]
[null,"إيصــــــــــــال إستلام نقـــــدية",null,null,null,null,null,null,null,null,"السمان قناوي جمال علي"]
[]
[null,null,null,null,null,null,"رقــم :",3,null,null,null,null,null,null,null,null,"لايصرف الرقم الابعد الانتهاء "]
[]
[null,"مبلغ وقــدره:",null,{"$f":"IF(C9=\"\",\"\",nototxt(C9,\"جنيـــهاً\",\"قرش\"))","v":""},null,null,null,null,null,null,null,null,null,null,null,null,"من كتابة بيانات الايصال"]
[]
[null,"أسم المستلم :",null,null,null,null,null,null,null,null,null,null,null,null,null,null,"والضغط على حفظ وطباعة"]
[]
[null,"وذلك قيمة :",null,null,null,null,null,null,null,null,null,null,null,null,null,null,"ثم إيصال جديد"]
[]
[null,null,null,null,null,"توقيع المستلم",null,null,null,null,null,null,null,null,null,null,"الايصالات في الشيت sheet13"]
[null,null,null,null,null,{"$f":"C11","v":0},null,null,null,null,null,null,null,null,null,null,"لغرض الطباعة الوقتية للايصال "]
[null,"تاريخ اليوم:",{"$f":"NOW()","v":"2019-03-18T02:22:32.880"},null,null,null,null,null,null,null,null,null,null,null,null,null,"من نسختين "]

{"sheet":"Sheet13","index":4,"n_rows":37,"n_cols":9,"rows_kept":37,"cut":false,"hidden":false,"merged":[[16,6,16,8],[5,2,5,8],[9,4,9,8],[11,3,11,6],[13,3,13,8],[15,6,15,8],[35,6,35,8],[36,3,36,4],[17,3,17,4],[24,2,24,8],[28,4,28,8],[30,3,30,6],[32,3,32,8],[34,6,34,8]]}
[]
[]
[null,null,"شركة اولاد منصور للمقاولات العامة والتوريدات",null,null,null,"العنوان : "]
[null,null,"لصاحبها - الحاج منصور وشركاه"]
[]
[null,null,"إيصــــــــــــال إستلام نقـــــدية"]
[]
[null,null,null,null,null,null,null,"رقــم :",{"$f":"+Sheet12!$H$7","v":3}]
[]
[null,null,"مبلغ وقــدره:",{"$f":"+Sheet12!$C$9","v":0},{"$f":"+Sheet12!$D$9","v":""}]
[]
[null,null,"أسم المستلم :",{"$f":"+Sheet12!$C$11","v":0}]
[]
[null,null,"وذلك قيمة :",{"$f":"+Sheet12!$C$13","v":0}]
[]
[null,null,null,null,null,null,"توقيع المستلم"]
[null,null,null,null,null,null,{"$f":"$D$12","v":0}]
[null,null,"تاريخ اليوم:",{"$f":"+Sheet12!$C$17","v":"2019-03-18T02:22:32.880"}]
[]
[]
[]
[null,null,"شركة اولاد منصور للمقاولات العامة والتوريدات",null,null,null,"العنوان : "]
[null,null,"لصاحبها - الحاج منصور وشركاه"]
[]
[null,null,"إيصــــــــــــال إستلام نقـــــدية"]
[]
[null,null,null,null,null,null,null,"رقــم :",{"$f":"+Sheet12!$H$7","v":3}]
[]
[null,null,"مبلغ وقــدره:",{"$f":"+Sheet12!$C$9","v":0},{"$f":"+Sheet12!$D$9","v":""}]
[]
[null,null,"أسم المستلم :",{"$f":"+Sheet12!$C$11","v":0}]
[]
[null,null,"وذلك قيمة :",{"$f":"+Sheet12!$C$13","v":0}]
[]
[null,null,null,null,null,null,"توقيع المستلم"]
[null,null,null,null,null,null,{"$f":"$D$12","v":0}]
[null,null,"تاريخ اليوم:",{"$f":"+Sheet12!$C$17","v":"2019-03-18T02:22:32.880"}]